[Event "*** Titled Tuesday Blitz"]
[Site "Chess.com"]
[Date "2020.04.14"]
[Round "4"]
[White "Riazantsev"]
[Black "KarstenHansch"]
[Result "1-0"]
[WhiteElo "2642"]
[BlackElo "2420"]
[TimeControl "180+1"]
[EndTime "10:40:57 PDT"]
[Termination "Riazantsev won by resignation"]

1. d4 {[%clk 0:03:00.9]} 1... d5 {[%clk 0:02:59.4]} 2. c4 {[%clk 0:02:59.8]}
2... e6 {[%clk 0:02:59.5]} 3. Nc3 {[%clk 0:02:58.1]} 3... Nf6 {[%clk 0:02:59.6]}
4. Bg5 {[%clk 0:02:55.3]} 4... Be7 {[%clk 0:02:59.3]} 5. e3 {[%clk 0:02:55.5]}
5... Nbd7 {[%clk 0:02:59]} 6. Qc2 {[%clk 0:02:52.4]} 6... h6 {[%clk 0:02:52.6]}
7. Bxf6 {[%clk 0:02:51.1]} 7... Nxf6 {[%clk 0:02:52.3]} 8. Nf3 {[%clk
0:02:51.2]} 8... O-O {[%clk 0:02:50.8]} 9. O-O-O {[%clk 0:02:51.4]} 9... b6
{[%clk 0:02:42.5]} 10. Ne5 {[%clk 0:02:38.5]} 10... Bb7 {[%clk 0:02:39.3]} 11.
g4 {[%clk 0:02:38.6]} 11... dxc4 {[%clk 0:02:37.7]} 12. Rg1 {[%clk 0:02:38.9]}
12... Nd5 {[%clk 0:02:36.6]} 13. Bxc4 {[%clk 0:02:34.1]} 13... Nxc3 {[%clk
0:02:26.6]} 14. Qxc3 {[%clk 0:02:32.9]} 14... Bf6 {[%clk 0:02:26.3]} 15. f4
{[%clk 0:02:32]} 15... Bxe5 {[%clk 0:02:23.5]} 16. dxe5 {[%clk 0:02:32.1]} 16...
Qe7 {[%clk 0:02:22.7]} 17. g5 {[%clk 0:02:32]} 17... Rfd8 {[%clk 0:02:16.6]} 18.
Rxd8+ {[%clk 0:02:15.7]} 18... Rxd8 {[%clk 0:02:14.9]} 19. gxh6 {[%clk
0:02:15.5]} 19... g6 {[%clk 0:02:14.9]} 20. f5 {[%clk 0:02:15.9]} 20... Kh7
{[%clk 0:02:05.9]} 21. fxg6+ {[%clk 0:02:06.4]} 21... fxg6 {[%clk 0:02:05.5]}
22. Bd3 {[%clk 0:01:57.4]} 22... Qc5 {[%clk 0:01:53.5]} 23. Qxc5 {[%clk
0:01:44.1]} 23... bxc5 {[%clk 0:01:53]} 24. Bxg6+ {[%clk 0:01:32.1]} 24... Kxh6
{[%clk 0:01:53.1]} 25. Bc2 {[%clk 0:01:24.3]} 25... Bd5 {[%clk 0:01:45]} 26. a3
{[%clk 0:01:10.1]} 26... Rf8 {[%clk 0:01:43.6]} 27. Rg6+ {[%clk 0:01:06.1]}
27... Kh5 {[%clk 0:01:43.4]} 28. Rf6 {[%clk 0:01:06.8]} 28... Rg8 {[%clk
0:01:43]} 29. Bd1+ {[%clk 0:01:04.4]} 29... Kh4 {[%clk 0:01:36.8]} 30. Rh6+
{[%clk 0:01:03.4]} 30... Kg5 {[%clk 0:01:35.4]} 31. Rh7 {[%clk 0:01:03.6]} 31...
Kf5 {[%clk 0:01:32.4]} 32. Rxc7 {[%clk 0:01:02.5]} 32... Rh8 {[%clk 0:01:31.1]}
33. Rxc5 {[%clk 0:00:51.1]} 33... Rxh2 {[%clk 0:01:28.1]} 34. Ra5 {[%clk
0:00:37.4]} 34... Rh1 {[%clk 0:01:27.5]} 35. Kd2 {[%clk 0:00:37]} 35... Rh2+
{[%clk 0:01:26.3]} 36. Kc3 {[%clk 0:00:36.8]} 36... Kxe5 {[%clk 0:01:26]} 37.
Rxa7 {[%clk 0:00:34.3]} 37... Rh3 {[%clk 0:01:25.3]} 38. Kd2 {[%clk 0:00:34.1]}
38... Rh2+ {[%clk 0:01:25.4]} 39. Kc3 {[%clk 0:00:33.6]} 39... Rh3 {[%clk
0:01:25.2]} 40. Kd3 {[%clk 0:00:33.9]} 40... Be4+ {[%clk 0:01:23.3]} 41. Kd2
{[%clk 0:00:34.3]} 41... Rh2+ {[%clk 0:01:21.1]} 42. Kc3 {[%clk 0:00:34.9]}
42... Rh3 {[%clk 0:01:21.3]} 43. Ra5+ {[%clk 0:00:35.1]} 43... Bd5 {[%clk
0:01:20.5]} 44. Kd3 {[%clk 0:00:34.5]} 44... Kd6 {[%clk 0:01:19.6]} 45. Ra6+
{[%clk 0:00:32]} 45... Kc5 {[%clk 0:01:19.1]} 46. b4+ {[%clk 0:00:28.7]} 46...
Kb5 {[%clk 0:01:18.1]} 47. Ra5+ {[%clk 0:00:29.1]} 47... Kb6 {[%clk 0:01:18.2]}
48. Bc2 {[%clk 0:00:29.1]} 48... Bc6 {[%clk 0:01:14.2]} 49. Kd4 {[%clk 0:00:27]}
49... Rh4+ {[%clk 0:01:13]} 50. e4 {[%clk 0:00:27.4]} 50... Rh2 {[%clk
0:01:11.7]} 51. Bd3 {[%clk 0:00:27.5]} 51... Rd2 {[%clk 0:01:10.1]} 52. Kc3
{[%clk 0:00:26.5]} 52... Ra2 {[%clk 0:01:07.8]} 53. Ra6+ {[%clk 0:00:26.6]}
53... Kc7 {[%clk 0:01:04.8]} 54. b5 {[%clk 0:00:26.7]} 54... Bb7 {[%clk
0:01:04]} 55. Ra4 {[%clk 0:00:26.1]} 55... Kb6 {[%clk 0:01:02.1]} 56. Kb3 {[%clk
0:00:25.4]} 56... Rh2 {[%clk 0:01:01]} 57. Rd4 {[%clk 0:00:24.7]} 57... Rh3
{[%clk 0:00:58.4]} 58. Kb4 {[%clk 0:00:24]} 58... e5 {[%clk 0:00:57.3]} 59. Rd6+
{[%clk 0:00:18.9]} 59... Kc7 {[%clk 0:00:57]} 60. Kc5 {[%clk 0:00:19.2]} 60...
Rh1 {[%clk 0:00:52.4]} 61. b6+ {[%clk 0:00:19.4]} 61... Kc8 {[%clk 0:00:52.5]}
62. Rg6 {[%clk 0:00:14.6]} 62... Rc1+ {[%clk 0:00:51.4]} 63. Kb4 {[%clk
0:00:13.5]} 63... Re1 {[%clk 0:00:31.2]} 64. Rg7 {[%clk 0:00:12.9]} 64... Bxe4
{[%clk 0:00:28.3]} 65. Bxe4 {[%clk 0:00:13.1]} 65... Rxe4+ {[%clk 0:00:27.5]}
66. Kb5 {[%clk 0:00:13.8]} 66... Re3 {[%clk 0:00:27.3]} 67. a4 {[%clk
0:00:13.7]} 67... Kb8 {[%clk 0:00:26.8]} 68. a5 {[%clk 0:00:13.3]} 1-0

[Event "*** Titled Tuesday Blitz"]
[Site "Chess.com"]
[Date "2020.04.14"]
[Round "4"]
[White "anon132639"]
[Black "Nitzan_Steinberg"]
[Result "0-1"]
[WhiteElo "2718"]
[BlackElo "2902"]
[TimeControl "180+1"]
[EndTime "10:40:59 PDT"]
[Termination "Nitzan_Steinberg won by resignation"]

1. d4 {[%clk 0:03:00.9]} 1... d5 {[%clk 0:02:58.5]} 2. c4 {[%clk 0:02:56.3]}
2... c6 {[%clk 0:02:58.6]} 3. Nc3 {[%clk 0:02:55.1]} 3... Nf6 {[%clk 0:02:58.5]}
4. cxd5 {[%clk 0:02:55.6]} 4... cxd5 {[%clk 0:02:58.4]} 5. Bf4 {[%clk
0:02:56.1]} 5... Nc6 {[%clk 0:02:58.1]} 6. e3 {[%clk 0:02:56.7]} 6... Bf5 {[%clk
0:02:57.9]} 7. Qb3 {[%clk 0:02:56.8]} 7... Na5 {[%clk 0:02:57.9]} 8. Qa4+ {[%clk
0:02:57.4]} 8... Bd7 {[%clk 0:02:57.7]} 9. Qc2 {[%clk 0:02:57.9]} 9... Rc8
{[%clk 0:02:57]} 10. Bd3 {[%clk 0:02:57.6]} 10... e6 {[%clk 0:02:57.1]} 11. Nf3
{[%clk 0:02:56.7]} 11... Bb4 {[%clk 0:02:57]} 12. O-O {[%clk 0:02:51.3]} 12...
O-O {[%clk 0:02:56.6]} 13. Rfc1 {[%clk 0:02:44]} 13... h6 {[%clk 0:02:52.2]} 14.
h3 {[%clk 0:02:41.3]} 14... Qe7 {[%clk 0:02:51.7]} 15. Ne5 {[%clk 0:02:38.1]}
15... Rfd8 {[%clk 0:02:51.3]} 16. Qe2 {[%clk 0:02:34.1]} 16... Be8 {[%clk
0:02:47.7]} 17. Rc2 {[%clk 0:02:17.3]} 17... Bxc3 {[%clk 0:02:32.7]} 18. Rxc3
{[%clk 0:02:08.7]} 18... Rxc3 {[%clk 0:02:31.7]} 19. bxc3 {[%clk 0:02:09.6]}
19... Rc8 {[%clk 0:02:28.6]} 20. c4 {[%clk 0:02:06.4]} 20... b6 {[%clk
0:02:02.9]} 21. cxd5 {[%clk 0:01:42.8]} 21... Nxd5 {[%clk 0:02:00.5]} 22. Bg3
{[%clk 0:01:42.5]} 22... Nb4 {[%clk 0:01:45.9]} 23. Be4 {[%clk 0:01:35.4]} 23...
f6 {[%clk 0:01:38]} 24. a3 {[%clk 0:01:28.4]} 24... Nd5 {[%clk 0:01:23.5]} 25.
Ng6 {[%clk 0:01:13]} 25... Qd7 {[%clk 0:01:05.5]} 26. Bd3 {[%clk 0:00:59.3]}
26... Nb3 {[%clk 0:00:59.6]} 27. Rf1 {[%clk 0:00:49.7]} 27... Nc1 {[%clk
0:00:58.6]} 28. Qd2 {[%clk 0:00:39.6]} 28... Nxd3 {[%clk 0:00:58.3]} 29. Qxd3
{[%clk 0:00:40.5]} 29... Rc3 {[%clk 0:00:52.3]} 30. Qb1 {[%clk 0:00:39.5]} 30...
Qb5 {[%clk 0:00:52]} 31. Qxb5 {[%clk 0:00:28.8]} 31... Bxb5 {[%clk 0:00:52.9]}
32. Ra1 {[%clk 0:00:29.1]} 32... Kf7 {[%clk 0:00:43.5]} 33. Nf4 {[%clk
0:00:29.4]} 33... Bc4 {[%clk 0:00:40.7]} 34. Nxd5 {[%clk 0:00:28.5]} 34... exd5
{[%clk 0:00:40.6]} 35. a4 {[%clk 0:00:27]} 35... a6 {[%clk 0:00:37.4]} 36. Bc7
{[%clk 0:00:20.3]} 36... b5 {[%clk 0:00:37.3]} 37. axb5 {[%clk 0:00:21.2]} 37...
Bxb5 {[%clk 0:00:29.3]} 38. Bd6 {[%clk 0:00:21.1]} 38... g5 {[%clk 0:00:27.5]}
39. Bc5 {[%clk 0:00:19.1]} 39... Rc2 {[%clk 0:00:27.6]} 40. g4 {[%clk
0:00:15.8]} 40... Kg6 {[%clk 0:00:26.9]} 41. Kg2 {[%clk 0:00:15.5]} 41... h5
{[%clk 0:00:26.4]} 42. gxh5+ {[%clk 0:00:15.1]} 42... Kxh5 {[%clk 0:00:27.3]}
43. Kg3 {[%clk 0:00:15.4]} 43... f5 {[%clk 0:00:27.1]} 44. Rh1 {[%clk
0:00:10.1]} 44... Rc3 {[%clk 0:00:27.2]} 45. h4 {[%clk 0:00:09.3]} 45... f4+
{[%clk 0:00:27]} 46. Kf3 {[%clk 0:00:09.9]} 46... fxe3 {[%clk 0:00:20.4]} 47.
hxg5+ {[%clk 0:00:10.4]} 47... Kxg5 {[%clk 0:00:20.6]} 48. fxe3 {[%clk 0:00:11]}
48... Bd3 {[%clk 0:00:20.7]} 49. Rg1+ {[%clk 0:00:09.9]} 49... Kf5 {[%clk
0:00:20.4]} 50. Ra1 {[%clk 0:00:10.4]} 50... Rc2 {[%clk 0:00:17.4]} 51. Kg3
{[%clk 0:00:07.9]} 51... Re2 {[%clk 0:00:16.8]} 52. Ra3 {[%clk 0:00:06.7]} 52...
Rxe3+ {[%clk 0:00:15.2]} 53. Kf2 {[%clk 0:00:07]} 53... Rh3 {[%clk 0:00:15.3]}
54. Ra5 {[%clk 0:00:04]} 54... Ke4 {[%clk 0:00:14]} 55. Ra1 {[%clk 0:00:02.3]}
55... Rf3+ {[%clk 0:00:14.2]} 56. Kg2 {[%clk 0:00:02.6]} 56... Bc4 {[%clk
0:00:15.1]} 57. Re1+ {[%clk 0:00:02.8]} 57... Re3 {[%clk 0:00:15.5]} 58. Rxe3+
{[%clk 0:00:02.9]} 58... Kxe3 {[%clk 0:00:16.4]} 59. Kg3 {[%clk 0:00:03.7]}
59... Ke4 {[%clk 0:00:16.4]} 60. Kf2 {[%clk 0:00:04.1]} 60... Kd3 {[%clk
0:00:16.7]} 61. Ke1 {[%clk 0:00:05]} 61... Kc3 {[%clk 0:00:17.1]} 62. Kf2 {[%clk
0:00:05.6]} 62... a5 {[%clk 0:00:17.4]} 63. Ke3 {[%clk 0:00:06.2]} 63... a4
{[%clk 0:00:17.6]} 64. Kf4 {[%clk 0:00:06.5]} 64... Kb2 {[%clk 0:00:17.9]} 65.
Ke3 {[%clk 0:00:06.1]} 65... a3 {[%clk 0:00:18.8]} 0-1

[Event "*** Titled Tuesday Blitz"]
[Site "Chess.com"]
[Date "2020.04.14"]
[Round "4"]
[White "Witaliss"]
[Black "HanSchut"]
[Result "1/2-1/2"]
[WhiteElo "2415"]
[BlackElo "2228"]
[TimeControl "180+1"]
[EndTime "10:41:00 PDT"]
[Termination "Game drawn by repetition"]

1. d4 {[%clk 0:03:00.9]} 1... Nf6 {[%clk 0:02:59.3]} 2. c4 {[%clk 0:03:00.2]}
2... g6 {[%clk 0:02:59.7]} 3. Nc3 {[%clk 0:02:59.5]} 3... d5 {[%clk 0:02:59.7]}
4. cxd5 {[%clk 0:02:59]} 4... Nxd5 {[%clk 0:03:00.2]} 5. e4 {[%clk 0:02:59.2]}
5... Nxc3 {[%clk 0:03:00.8]} 6. bxc3 {[%clk 0:02:59.5]} 6... Bg7 {[%clk
0:03:01.4]} 7. Nf3 {[%clk 0:02:59.3]} 7... c5 {[%clk 0:03:02]} 8. Rb1 {[%clk
0:02:58.9]} 8... O-O {[%clk 0:03:00.9]} 9. Be2 {[%clk 0:02:58.4]} 9... cxd4
{[%clk 0:03:00.7]} 10. cxd4 {[%clk 0:02:57.9]} 10... Qa5+ {[%clk 0:03:01.2]} 11.
Bd2 {[%clk 0:02:55.5]} 11... Qxa2 {[%clk 0:03:00.8]} 12. O-O {[%clk 0:02:55.3]}
12... Bg4 {[%clk 0:02:59.9]} 13. Bg5 {[%clk 0:02:47.2]} 13... h6 {[%clk
0:02:59.1]} 14. Bxe7 {[%clk 0:02:46.2]} 14... Re8 {[%clk 0:02:55.1]} 15. Rxb7
{[%clk 0:02:36.8]} 15... Nc6 {[%clk 0:02:15.3]} 16. Bc5 {[%clk 0:02:35.4]} 16...
Rxe4 {[%clk 0:02:04.8]} 17. Bd3 {[%clk 0:02:33.6]} 17... Rf4 {[%clk 0:01:20.3]}
18. Qb1 {[%clk 0:02:04.6]} 18... Qxb1 {[%clk 0:01:11.8]} 19. Rfxb1 {[%clk
0:02:03.6]} 19... Bxf3 {[%clk 0:01:12.3]} 20. gxf3 {[%clk 0:02:02.7]} 20... Nxd4
{[%clk 0:01:08.3]} 21. Be4 {[%clk 0:01:58.9]} 21... Nxf3+ {[%clk 0:01:04.7]} 22.
Bxf3 {[%clk 0:01:58.4]} 22... Rxf3 {[%clk 0:01:04.4]} 23. Rb8+ {[%clk
0:01:56.4]} 23... Rxb8 {[%clk 0:01:03.6]} 24. Rxb8+ {[%clk 0:01:56.2]} 24... Kh7
{[%clk 0:01:04.1]} 25. Bxa7 {[%clk 0:01:56.1]} 25... Rf4 {[%clk 0:00:47.3]} 26.
h3 {[%clk 0:01:53.5]} 26... Bd4 {[%clk 0:00:45.7]} 27. Bxd4 {[%clk 0:01:51.1]}
27... Rxd4 {[%clk 0:00:46.6]} 28. Kg2 {[%clk 0:01:50]} 28... Kg7 {[%clk
0:00:47.1]} 29. Rb6 {[%clk 0:01:48.9]} 29... g5 {[%clk 0:00:46.6]} 30. Kg3
{[%clk 0:01:46.6]} 30... f6 {[%clk 0:00:47]} 31. Ra6 {[%clk 0:01:44.2]} 31...
Kg6 {[%clk 0:00:47.5]} 32. Rb6 {[%clk 0:01:44.1]} 32... h5 {[%clk 0:00:44.9]}
33. Ra6 {[%clk 0:01:43.7]} 33... h4+ {[%clk 0:00:45]} 34. Kg2 {[%clk 0:01:43.3]}
34... Rd3 {[%clk 0:00:42.3]} 35. Rb6 {[%clk 0:01:42.3]} 35... Rd5 {[%clk
0:00:36.1]} 36. Ra6 {[%clk 0:01:41.8]} 36... Kf5 {[%clk 0:00:36]} 37. Rb6 {[%clk
0:01:41.2]} 37... Re5 {[%clk 0:00:36.4]} 38. Ra6 {[%clk 0:01:40.8]} 38... Re6
{[%clk 0:00:36.6]} 39. Ra5+ {[%clk 0:01:40.5]} 39... Re5 {[%clk 0:00:36.8]} 40.
Ra6 {[%clk 0:01:40.2]} 40... Re6 {[%clk 0:00:31.2]} 41. Ra5+ {[%clk 0:01:39.6]}
41... Kf4 {[%clk 0:00:23.8]} 42. Ra4+ {[%clk 0:01:39.1]} 42... Re4 {[%clk
0:00:22.6]} 43. Ra6 {[%clk 0:01:38.4]} 43... f5 {[%clk 0:00:22.7]} 44. Ra3
{[%clk 0:01:32.1]} 44... g4 {[%clk 0:00:20.2]} 45. hxg4 {[%clk 0:01:25.8]} 45...
fxg4 {[%clk 0:00:20.4]} 46. Ra2 {[%clk 0:01:24.4]} 46... h3+ {[%clk 0:00:17.9]}
47. Kf1 {[%clk 0:01:19.4]} 47... Rb4 {[%clk 0:00:16.6]} 48. Kg1 {[%clk
0:01:16.4]} 48... Rb1+ {[%clk 0:00:15.7]} 49. Kh2 {[%clk 0:01:16.2]} 49... Kf3
{[%clk 0:00:16.1]} 50. Rc2 {[%clk 0:01:08.6]} 50... Rf1 {[%clk 0:00:15.6]} 51.
Rc3+ {[%clk 0:01:08.2]} 51... Kxf2 {[%clk 0:00:16.2]} 52. Rc2+ {[%clk
0:01:07.2]} 52... Kf3 {[%clk 0:00:16.7]} 53. Rc3+ {[%clk 0:01:07.3]} 53... Kf4
{[%clk 0:00:17.1]} 54. Rc4+ {[%clk 0:01:07.2]} 54... Kg5 {[%clk 0:00:17.5]} 55.
Rc5+ {[%clk 0:01:00.4]} 55... Kh4 {[%clk 0:00:17.5]} 56. Rc4 {[%clk 0:00:59.7]}
56... Rf2+ {[%clk 0:00:16.9]} 57. Kg1 {[%clk 0:00:59.7]} 57... Rf3 {[%clk
0:00:15.6]} 58. Rc2 {[%clk 0:00:56.2]} 58... Kg3 {[%clk 0:00:15.5]} 59. Rg2+
{[%clk 0:00:55]} 59... Kh4 {[%clk 0:00:12.9]} 60. Ra2 {[%clk 0:00:54.2]} 60...
Rb3 {[%clk 0:00:12.7]} 61. Ra4 {[%clk 0:00:45.1]} 61... Kg3 {[%clk 0:00:12.6]}
62. Ra1 {[%clk 0:00:44.8]} 62... h2+ {[%clk 0:00:12.5]} 63. Kh1 {[%clk
0:00:44.1]} 63... Rf3 {[%clk 0:00:09.3]} 64. Re1 {[%clk 0:00:41.2]} 64... Kf2
{[%clk 0:00:04.9]} 65. Ra1 {[%clk 0:00:38.8]} 65... Kg3 {[%clk 0:00:05.1]} 66.
Rb1 {[%clk 0:00:37.6]} 66... Kh3 {[%clk 0:00:05.2]} 67. Rb3 {[%clk 0:00:32]}
67... Kg3 {[%clk 0:00:02.4]} 68. Rb1 {[%clk 0:00:27.5]} 68... Kf4 {[%clk
0:00:02.9]} 69. Rb4+ {[%clk 0:00:25.8]} 69... Kg3 {[%clk 0:00:03.3]} 70. Rb2
{[%clk 0:00:25.5]} 70... Kh4 {[%clk 0:00:02.3]} 71. Rb1 {[%clk 0:00:26.4]} 71...
Kh3 {[%clk 0:00:02.5]} 72. Rb3 {[%clk 0:00:24.6]} 72... Kg3 {[%clk 0:00:01.1]}
73. Rb1 {[%clk 0:00:24]} 1/2-1/2

[Event "*** Titled Tuesday Blitz"]
[Site "Chess.com"]
[Date "2020.04.14"]
[Round "4"]
[White "GMBenjaminBok"]
[Black "Y0ung_Capablanca"]
[Result "1-0"]
[WhiteElo "2892"]
[BlackElo "2691"]
[TimeControl "180+1"]
[EndTime "10:41:02 PDT"]
[Termination "GMBenjaminBok won by resignation"]

1. c4 {[%clk 0:03:00.9]} 1... e5 {[%clk 0:02:58.7]} 2. g3 {[%clk 0:03:01.1]}
2... Nf6 {[%clk 0:02:56.5]} 3. Bg2 {[%clk 0:03:01.5]} 3... Nc6 {[%clk 0:02:55]}
4. Nc3 {[%clk 0:03:01.5]} 4... Bb4 {[%clk 0:02:54.2]} 5. Nd5 {[%clk 0:03:00.8]}
5... Nxd5 {[%clk 0:02:51.7]} 6. cxd5 {[%clk 0:03:00.6]} 6... Ne7 {[%clk
0:02:52.1]} 7. Nf3 {[%clk 0:02:59.1]} 7... Ng6 {[%clk 0:02:51.1]} 8. O-O {[%clk
0:02:55.6]} 8... O-O {[%clk 0:02:49.8]} 9. d4 {[%clk 0:02:50.5]} 9... e4 {[%clk
0:02:42.7]} 10. Ng5 {[%clk 0:02:49]} 10... f5 {[%clk 0:02:42.3]} 11. d6 {[%clk
0:02:49]} 11... Bxd6 {[%clk 0:02:31]} 12. Qb3+ {[%clk 0:02:47.3]} 12... Kh8
{[%clk 0:02:30.4]} 13. Nf7+ {[%clk 0:02:48]} 13... Rxf7 {[%clk 0:02:30.3]} 14.
Qxf7 {[%clk 0:02:48.9]} 14... Qf8 {[%clk 0:02:27.7]} 15. Qxf8+ {[%clk
0:02:48.4]} 15... Bxf8 {[%clk 0:02:28.1]} 16. f3 {[%clk 0:02:26.2]} 16... d5
{[%clk 0:02:27.2]} 17. fxe4 {[%clk 0:02:06]} 17... fxe4 {[%clk 0:02:28.1]} 18.
Bf4 {[%clk 0:01:43.7]} 18... c6 {[%clk 0:02:24.5]} 19. e3 {[%clk 0:01:35.2]}
19... Kg8 {[%clk 0:02:21.9]} 20. a3 {[%clk 0:01:24.2]} 20... Be7 {[%clk
0:02:07.5]} 21. b4 {[%clk 0:01:22.7]} 21... Bd7 {[%clk 0:02:04.6]} 22. Rfc1
{[%clk 0:01:17.9]} 22... a6 {[%clk 0:01:59.9]} 23. Bf1 {[%clk 0:01:16.2]} 23...
Kf7 {[%clk 0:01:52.2]} 24. Rab1 {[%clk 0:01:07.7]} 24... b5 {[%clk 0:01:20.6]}
25. Bc7 {[%clk 0:00:57.2]} 25... Nf8 {[%clk 0:01:10.5]} 26. h4 {[%clk
0:00:55.3]} 26... Ke8 {[%clk 0:01:01.1]} 27. Kh2 {[%clk 0:00:51.9]} 27... Ne6
{[%clk 0:00:55.7]} 28. Bb6 {[%clk 0:00:47.3]} 28... Rb8 {[%clk 0:00:54]} 29. Bc5
{[%clk 0:00:46.3]} 29... Nxc5 {[%clk 0:00:51.1]} 30. bxc5 {[%clk 0:00:44.5]}
30... Bd8 {[%clk 0:00:47.2]} 31. Bh3 {[%clk 0:00:42.4]} 31... Bxh3 {[%clk
0:00:45.6]} 32. Kxh3 {[%clk 0:00:43.3]} 32... Rb7 {[%clk 0:00:31.4]} 33. Rf1
{[%clk 0:00:40.8]} 33... Bf6 {[%clk 0:00:24.5]} 34. g4 {[%clk 0:00:40]} 34... h6
{[%clk 0:00:24.2]} 35. Rf5 {[%clk 0:00:39.9]} 35... Kf7 {[%clk 0:00:20.5]} 36.
g5 {[%clk 0:00:34.9]} 36... hxg5 {[%clk 0:00:19.9]} 37. hxg5 {[%clk 0:00:34.7]}
37... Ke6 {[%clk 0:00:18.1]} 38. Rbf1 {[%clk 0:00:33.4]} 38... Be7 {[%clk
0:00:18.3]} 39. Rf7 {[%clk 0:00:30.5]} 39... a5 {[%clk 0:00:13.5]} 40. Rxg7
{[%clk 0:00:28]} 40... b4 {[%clk 0:00:14]} 41. axb4 {[%clk 0:00:27.6]} 41...
axb4 {[%clk 0:00:14.9]} 42. Kg4 {[%clk 0:00:24.1]} 42... b3 {[%clk 0:00:15.3]}
43. Rg6+ {[%clk 0:00:22.4]} 43... Kd7 {[%clk 0:00:15.3]} 44. Rb1 {[%clk
0:00:21.8]} 44... b2 {[%clk 0:00:15.7]} 45. Rh6 {[%clk 0:00:20.7]} 45... Rb3
{[%clk 0:00:16.1]} 46. Kf4 {[%clk 0:00:18.7]} 46... Bd8 {[%clk 0:00:11.8]} 47.
Rh7+ {[%clk 0:00:10.6]} 47... Ke6 {[%clk 0:00:11.2]} 48. g6 {[%clk 0:00:09.6]}
48... Kf6 {[%clk 0:00:09]} 49. g7 {[%clk 0:00:07.1]} 49... Bc7+ {[%clk 0:00:09]}
50. Kg4 {[%clk 0:00:06.5]} 50... Rxe3 {[%clk 0:00:09.1]} 51. g8=Q {[%clk
0:00:06.2]} 51... Rg3+ {[%clk 0:00:09.1]} 52. Kh4 {[%clk 0:00:06]} 52... Rxg8
{[%clk 0:00:09.3]} 53. Rxc7 {[%clk 0:00:06.6]} 53... Rg2 {[%clk 0:00:09.6]} 54.
Rxc6+ {[%clk 0:00:05.7]} 54... Kf5 {[%clk 0:00:09.8]} 55. Rb6 {[%clk 0:00:05.7]}
55... e3 {[%clk 0:00:10.3]} 56. R6xb2 {[%clk 0:00:03.6]} 56... Rg8 {[%clk
0:00:10.6]} 57. Re1 {[%clk 0:00:02.6]} 57... Kf4 {[%clk 0:00:08.9]} 58. Kh5
{[%clk 0:00:02.4]} 58... Rg5+ {[%clk 0:00:06.6]} 59. Kh6 {[%clk 0:00:02.3]}
59... Rg4 {[%clk 0:00:06.4]} 60. Rbe2 {[%clk 0:00:02.3]} 60... Ke4 {[%clk
0:00:04.5]} 61. Rxe3+ {[%clk 0:00:02.3]} 61... Kxd4 {[%clk 0:00:05.2]} 62. c6
{[%clk 0:00:02.9]} 62... Rh4+ {[%clk 0:00:05]} 63. Kg5 {[%clk 0:00:02.5]} 63...
Re4 {[%clk 0:00:05.3]} 64. Rxe4+ {[%clk 0:00:02.4]} 1-0

[Event "*** Titled Tuesday Blitz"]
[Site "Chess.com"]
[Date "2020.04.14"]
[Round "4"]
[White "Koksik_13"]
[Black "djogrodek1"]
[Result "0-1"]
[WhiteElo "2680"]
[BlackElo "2546"]
[TimeControl "180+1"]
[EndTime "10:41:02 PDT"]
[Termination "djogrodek1 won on time"]

1. e4 {[%clk 0:02:48.9]} 1... c6 {[%clk 0:02:55.9]} 2. d4 {[%clk 0:02:48.6]}
2... d5 {[%clk 0:02:56.8]} 3. Nc3 {[%clk 0:02:49.5]} 3... dxe4 {[%clk
0:02:55.3]} 4. Nxe4 {[%clk 0:02:50.4]} 4... Nf6 {[%clk 0:02:55.2]} 5. Bd3 {[%clk
0:02:49.7]} 5... Nxe4 {[%clk 0:02:52.3]} 6. Bxe4 {[%clk 0:02:49.4]} 6... Be6
{[%clk 0:02:53]} 7. Nf3 {[%clk 0:02:48]} 7... Bd5 {[%clk 0:02:53.5]} 8. Bxd5
{[%clk 0:02:48.1]} 8... Qxd5 {[%clk 0:02:54.4]} 9. O-O {[%clk 0:02:48.2]} 9...
e6 {[%clk 0:02:54.8]} 10. Qe2 {[%clk 0:02:48.1]} 10... Nd7 {[%clk 0:02:51.5]}
11. c4 {[%clk 0:02:43.1]} 11... Qa5 {[%clk 0:02:42.5]} 12. Bd2 {[%clk
0:02:40.7]} 12... Qa6 {[%clk 0:02:41.7]} 13. b3 {[%clk 0:02:35.1]} 13... Be7
{[%clk 0:02:40.8]} 14. Rfd1 {[%clk 0:02:29.4]} 14... O-O {[%clk 0:02:38.7]} 15.
Bc3 {[%clk 0:02:24.4]} 15... Rfe8 {[%clk 0:02:36.7]} 16. Nd2 {[%clk 0:02:20.9]}
16... Nf6 {[%clk 0:02:21]} 17. Ne4 {[%clk 0:02:06.5]} 17... Nxe4 {[%clk
0:02:19.8]} 18. Qxe4 {[%clk 0:02:07.4]} 18... Bf6 {[%clk 0:02:17.4]} 19. Rd3
{[%clk 0:01:58.8]} 19... Rad8 {[%clk 0:02:17]} 20. a4 {[%clk 0:01:51.4]} 20...
Qb6 {[%clk 0:02:03.7]} 21. Bb2 {[%clk 0:01:44]} 21... Re7 {[%clk 0:02:00.2]} 22.
Rad1 {[%clk 0:01:42.1]} 22... Red7 {[%clk 0:02:00.3]} 23. Rh3 {[%clk 0:01:40]}
23... g6 {[%clk 0:01:58.5]} 24. Rf3 {[%clk 0:01:38.9]} 24... Bxd4 {[%clk
0:01:51.3]} 25. Rfd3 {[%clk 0:01:37.9]} 25... Bxf2+ {[%clk 0:01:49.6]} 26. Kf1
{[%clk 0:01:36.4]} 26... Rxd3 {[%clk 0:01:44.2]} 27. Rxd3 {[%clk 0:01:35]} 27...
Rxd3 {[%clk 0:01:44.3]} 28. Qxd3 {[%clk 0:01:35.1]} 28... Bg1 {[%clk 0:01:42]}
29. c5 {[%clk 0:00:56.9]} 29... Bxc5 {[%clk 0:01:29]} 30. Qc3 {[%clk 0:00:56.4]}
30... Kf8 {[%clk 0:00:19.1]} 31. Qh8+ {[%clk 0:00:44.2]} 31... Ke7 {[%clk
0:00:18.9]} 32. Bf6+ {[%clk 0:00:42.5]} 32... Kd7 {[%clk 0:00:18.7]} 33. Qg7
{[%clk 0:00:34.8]} 33... Qa6+ {[%clk 0:00:15.1]} 34. Ke1 {[%clk 0:00:34.3]}
34... Bb4+ {[%clk 0:00:15.2]} 35. Kf2 {[%clk 0:00:33.8]} 35... Qb6+ {[%clk
0:00:14.8]} 36. Kf3 {[%clk 0:00:33.6]} 36... Be7 {[%clk 0:00:10.1]} 37. Qxf7
{[%clk 0:00:31.5]} 37... Qxb3+ {[%clk 0:00:10.2]} 38. Ke2 {[%clk 0:00:14.2]}
38... Qc2+ {[%clk 0:00:10.6]} 39. Ke3 {[%clk 0:00:12.3]} 39... Qc5+ {[%clk
0:00:10.8]} 40. Ke2 {[%clk 0:00:10.5]} 40... b5 {[%clk 0:00:10.7]} 41. axb5
{[%clk 0:00:08.9]} 41... cxb5 {[%clk 0:00:11.6]} 42. Qxh7 {[%clk 0:00:09.1]}
42... Qh5+ {[%clk 0:00:11.9]} 43. Qxh5 {[%clk 0:00:07.8]} 43... gxh5 {[%clk
0:00:12.8]} 44. Bc3 {[%clk 0:00:06.9]} 44... b4 {[%clk 0:00:12.1]} 45. Bd4
{[%clk 0:00:07]} 45... a5 {[%clk 0:00:12.1]} 46. Kd3 {[%clk 0:00:07.9]} 46... a4
{[%clk 0:00:08.7]} 47. Kc4 {[%clk 0:00:08]} 47... Kc6 {[%clk 0:00:09.3]} 48. h3
{[%clk 0:00:06.3]} 48... Bd6 {[%clk 0:00:05.4]} 49. g4 {[%clk 0:00:06.1]} 49...
hxg4 {[%clk 0:00:06.3]} 50. hxg4 {[%clk 0:00:06.1]} 50... b3 {[%clk 0:00:06.7]}
51. g5 {[%clk 0:00:05.6]} 51... Bf8 {[%clk 0:00:06.3]} 52. g6 {[%clk 0:00:05.4]}
52... Kd7 {[%clk 0:00:04]} 53. Bc5 {[%clk 0:00:01.5]} 53... Bg7 {[%clk
0:00:04.1]} 54. Bd4 {[%clk 0:00:01.6]} 54... Bh6 {[%clk 0:00:04.7]} 55. Be3
{[%clk 0:00:01.3]} 55... Bf8 {[%clk 0:00:05.3]} 0-1